Cogmind - Beta 16.1 @@@ ROGUE MODE // 2026.04.18 @ 12:37:30 Player: N.W.L. Result: Destroyed by Y-72 Warden with Railgun Performance ------------- Evolutions (8) 4000 Regions Visited (22) 4400 Robots Destroyed (329) 1645 Value Destroyed (14984) 14984 Prototype IDs (39) 780 Alien Tech Used (2) 400 Bonus (9755) 9755 TOTAL SCORE: 35964 Bonus ------- Triggered High Security 1000 High Alert Combat Kills 2375 Follower Combat Kills 1500 Registered with UFD 300 Met Optimus in HQ 500 MAIN.C Attacked Warlord 500 Warlord Defense Kills 5338 Friendly Fire -1758 Cogmind --------- Core Integrity 0/1450 Matter 128/300 Energy 90/100 System Corruption 9% Temperature Cool (70) Movement Core (50) Location -2/Research Parts ------- > --- POWER (2) -------- (None) > --- PROPULSION (4) --- (None) > --- UTILITY (11) ----- Spectral Analyzer > --- WEAPON (6) ------- (None) > --- INVENTORY (5) ---- Makeshift Microdissipator Network Advanced Weapon Cycler Thermal Barrier Advanced Trap Extractor (0/8) Peak State ------------ > --- POWER ------------ Vortex Chain Reactor > --- PROPULSION ------- Improved Medium Treads Improved Medium Treads Overtuned Huge Scrapsphere > --- UTILITY ---------- Experimental Coolant Injector Large Storage Unit Spectral Analyzer Advanced Sensor Array Experimental Targeting Computer Improved Weapon Cycler Centrium Light Armor Plating Centrium Light Armor Plating Thermal Barrier Advanced Force Field Mini Drone Bay > --- WEAPON ----------- Heavy Laser Plasma Rifle HERF Cannon Overtuned Coil Gun > --- INVENTORY -------- Light Quantum Reactor Overtuned Huge Scrapsphere Makeshift Microdissipator Network Makeshift Terrain Scanner Advanced Transmission Jammer Advanced Remote Shield Hacking Suite Transdimensional Reconstructor Vortex Driver Vortex Driver Heavy Rocket Launcher RU-N14's Throwing Claymores v3 [Rating: 151] Favorites ----------- Power Reinforced Fission Core Engine Improved Deuterium Engine Power Core Reinforced Fission Core Reactor Vortex Chain Reactor Propulsion Overtuned Huge Scrapsphere Treads Light Treads Wheel Overtuned Huge Scrapsphere Hover Unit Cooled Airjet Utility Large Storage Unit Device Scrap Suit Storage Large Storage Unit Processor Experimental Targeting Computer Hackware Improved Hacking Suite Protection Centrium Light Armor Plating Weapon Overtuned Coil Gun Energy Gun Heavy Beamcaster Energy Cannon Cooled Plasma Cannon Ballistic Gun Overtuned Coil Gun Ballistic Cannon Light Cannon Launcher Long-range Missile Launcher Special Weapon Improved Plasma Cutter Impact Weapon Thunder Hammer Special Melee Weapon Advanced Datajack Build | -11 -10 -10 -10 -8 -8 -6 -6 -6 -5 -5 -5 -5 -4 -4 -4 -4 -4 -4 -4 -3 -3 -2 ------- Run | Yrd Mat Min Sub Rec Scr Fac Low Low Fac Upp Upp Zhi Pro Fac Was Fac Upp Upp War Pro Res Res Slots Evolved 16 | . . . . . . 8 . . 2 . . . . 2 . . . . . . 2 2 Power 1 | . . . . . . 1 . . . . . . . . . . . . . . . . Propulsion 2 | . . . . . . 2 . . . . . . . . . . . . . . . . Utility 9 | . . . . . . 4 . . 2 . . . . 1 . . . . . . 2 . Weapon 4 | . . . . . . 1 . . . . . . . 1 . . . . . . . 2 Parts Attached 229 | 7 3 2 7 1 10 55 17 6 6 8 . 3 5 7 10 27 1 1 10 7 14 22 Power 28 | 1 1 . 1 . 2 6 2 1 . 2 . 1 1 2 1 2 . . 1 . 1 3 Engine 12 | 1 1 . 1 . 2 3 1 . . 2 . . . . . . . . . . . 1 Core 10 | . . . . . . 3 . 1 . . . 1 . 2 . 2 . . . . . 1 Reactor 6 | . . . . . . . 1 . . . . . 1 . 1 . . . 1 . 1 1 Propulsion 39 | 2 . . 2 . 2 10 2 2 . . . . . . 3 2 . . . 2 4 8 Treads 13 | 2 . . 2 . 2 2 2 . . . . . . . . . . . . 2 . 1 Leg . | . . . . . . . . . . . . . . . . . . . . . . . Wheel 7 | . . . . . . . . 2 . . . . . . . 2 . . . . 3 . Hover 19 | . . . . . . 8 . . . . . . . . 3 . . . . . 1 7 Flight . | . . . . . . . . . . . . . . . . . . . . . . . Utility 94 | 2 . 1 1 1 2 26 8 1 5 2 . 1 2 4 1 15 1 1 7 1 6 6 Device 50 | 1 . . . . . 16 4 1 3 1 . . 2 2 1 7 1 . 3 . 4 4 Storage 6 | 1 . . . . 1 2 . . . . . . . . . 1 . . . . . 1 Processor 15 | . . . . . . 4 2 . . 1 . . . . . 3 . . 2 1 1 1 Hackware 6 | . . . . . . 2 . . 1 . . . . 1 . 1 . . . . 1 . Protection 17 | . . 1 1 1 1 2 2 . 1 . . 1 . 1 . 3 . 1 2 . . . Artifact . | . . . . . . . . . . . . . . . . . . . . . . . Weapon 68 | 2 2 1 3 . 4 13 5 2 1 4 . 1 2 1 5 8 . . 2 4 3 5 Energy Gun 12 | . . . . . . 2 . 1 . . . . . . 4 3 . . . 2 . . Energy Cannon 14 | . . . . . . 4 1 . . . . 1 . . . 1 . . 1 1 2 3 Ballistic Gun 19 | 2 . . 2 . 1 1 3 1 1 1 . . 2 . 1 4 . . . . . . Ballistic Cannon 9 | . 1 . . . 1 4 1 . . 1 . . . . . . . . . . . 1 Launcher 6 | . . 1 1 . . 2 . . . 1 . . . . . . . . . 1 . . Special Weapon 6 | . 1 . . . 2 . . . . 1 . . . . . . . . 1 . 1 . Impact Weapon 1 | . . . . . . . . . . . . . . . . . . . . . . 1 Slashing Weapon . | . . . . . . . . . . . . . . . . . . . . . . . Piercing Weapon . | . . . . . . . . . . . . . . . . . . . . . . . Special Melee Weapon 1 | . . . . . . . . . . . . . . 1 . . . . . . . . Unidentified Prototypes 27 | . . . . . 1 7 1 . . 1 . 2 . . 1 2 . . 6 1 1 4 Corrupted Parts 4 | . . . . . . . . . . . . . . . . 1 . . 1 1 1 . System Corruption 27 | . . . . . . . . . . . . . . . . 5 . . 5 8 9 . Parts Lost 86 | . . . 3 . . 18 1 . 8 . . . . 3 . 9 . . 3 2 17 22 Power 11 | . . . 1 . . 3 1 . 2 . . . . . . . . . . . 2 2 Propulsion 18 | . . . 1 . . 7 . . . . . . . . . 1 . . . . 1 8 Utility 31 | . . . 1 . . 4 . . 3 . . . . . . 5 . . 2 . 8 8 Weapon 26 | . . . . . . 4 . . 3 . . . . 3 . 3 . . 1 2 6 4 Highest Loss Streak 11 | . . . 1 . . 11 1 . 8 . . . . 2 . 7 . . 2 1 11 7 To Critical Strikes 4 | . . . 1 . . . . . . . . . . . . 2 . . . . . 1 Average Backups 9 | 1 6 8 6 7 11 9 8 8 8 8 10 10 9 8 8 10 13 13 13 13 12 7 Power . | . . . . . . . . . . . . . . . . 1 1 1 . . . . Propulsion 1 | . 2 4 2 2 2 . . . . . . . . . . . . . . 1 1 2 Utility 4 | . 1 1 . 1 2 4 3 4 3 3 4 3 3 4 4 5 8 8 8 7 6 2 Weapon 3 | 1 2 2 2 3 3 2 3 4 4 3 5 5 3 2 2 2 3 3 3 4 3 1 Tool/Special . | . . . . . . . . . . . . . . . . . . . . . . . Unused Backups 24 | . 1 1 1 . 2 11 3 . 1 1 1 1 . . . . . . . . . 1 Power . | . . . . . . . . . . . . . . . . . . . . . . . Propulsion 2 | . . . 1 . . 1 . . . . . . . . . . . . . . . . Utility 16 | . . 1 . . 1 7 3 . . 1 1 1 . . . . . . . . . 1 Weapon 4 | . 1 . . . . 2 . . 1 . . . . . . . . . . . . . Tool/Special 2 | . . . . . 1 1 . . . . . . . . . . . . . . . . Average Slot Usage (%) 82 | . 100 100 89 93 99 79 76 78 71 66 76 72 78 79 74 78 78 78 77 86 82 52 Engine 5 | . 14 14 8 14 14 7 . . . 4 11 8 3 . . . . . . . . 1 Core 2 | . . . . . . 1 6 1 4 . . 2 5 9 10 9 5 5 1 . . . Reactor 1 | . . . . . . . 1 6 4 . . . 1 . . . 5 5 5 5 3 . Treads 10 | . 28 28 27 28 28 14 1 9 . . . . . . . . . . . 9 1 . Wheel 4 | . . . . . . . . 3 11 11 11 11 11 10 8 9 10 10 10 5 12 . Hover 2 | . . . . . . 5 17 . . . . . . . 1 . . . . . . 13 Device 11 | . 14 10 1 . . 9 7 13 10 15 17 15 17 19 15 16 14 15 18 19 24 15 Storage 7 | . 14 14 10 14 14 5 6 6 5 5 5 5 5 5 5 5 5 5 5 5 4 4 Processor 5 | . . . . . . 7 12 11 4 3 5 5 5 5 5 6 10 10 8 10 8 10 Hackware 2 | . . . . . . 6 6 6 5 5 5 5 5 5 5 1 . . . . 2 . Protection 5 | . . 3 11 7 14 3 . . 4 5 5 5 5 3 4 5 5 5 6 10 4 . Energy Gun 3 | . . . . . . 1 . 1 5 1 . . . . 13 12 8 5 2 5 6 . Energy Cannon 2 | . . . . . . 6 3 . . 5 . . 2 8 . . . . . 1 4 2 Ballistic Gun 8 | . 22 13 16 14 17 2 4 16 7 . . . 7 5 2 6 11 12 14 9 3 . Ballistic Cannon 3 | . 3 10 9 14 9 1 5 . . 1 5 . . . . . . . . . . . Peak Build Rating 151 | 7 7 8 13 13 30 65 75 79 97 90 90 94 98 109 114 118 118 118 137 141 151 128 Average Rating 69 | 5 7 7 8 11 19 49 66 65 89 77 90 89 97 103 102 108 117 117 126 137 137 90 On Entrance 69 | . 7 7 8 10 13 25 61 61 78 61 90 90 94 98 94 108 114 118 116 137 141 56 Avg Prop Armor Cover (%) 5 | . . . . . . 26 . 15 6 6 . . . . 2 10 . . 3 3 3 4 Naked Turns . | . . . . . . . . . . . . . . . . . . . . . . . Heaviest Build 124 | 13 16 20 30 19 47 90 52 54 73 67 59 59 69 103 98 118 124 124 124 102 111 64 Greatest Support 83 | 40 40 40 40 40 43 83 60 60 40 40 40 40 40 40 53 40 40 40 40 60 60 80 Greatest Overweight (x) 32 | . . . . . 1 4 1 1 1 2 1 1 1 2 4 7 3 3 32 5 3 10 Average Overweight (x) . | . . . . . . . . . . 1 1 1 1 1 2 1 2 3 2 1 2 . Largest Inventory Capacity 20 | 8 8 8 8 8 15 20 10 10 10 10 10 10 10 10 10 15 15 15 15 15 15 15 Average Capacity 11 | 7 8 8 7 8 13 12 10 10 10 10 10 10 10 10 10 12 15 15 15 15 15 14 Most Carried 20 | 2 8 8 8 8 15 20 10 10 10 10 10 10 10 10 10 15 15 15 15 15 15 13 Average Carried 11 | 1 6 8 7 8 13 12 9 9 9 8 10 9 9 9 9 12 15 14 14 14 14 8 Final Capacity 15 | 8 8 8 8 8 15 10 10 10 10 10 10 10 10 10 10 15 15 15 15 15 15 5 Final Carried 15 | 2 8 8 8 8 15 10 10 10 7 10 10 10 10 8 10 15 15 15 15 15 6 4 Scrap Suit Usage (%) 16 | . . . . . . . . 5 32 66 . . . 76 75 36 86 76 33 . . . Parts Cannibalized 14 | . . . . . . . . . 1 2 . . . 1 2 2 . 5 1 . . . Class Distribution -------------------- 42% | Mutant 26% | Scavenger-Scrapper 7% | Scavenger-Tank 6% | Gunner 3% | Derelict-Scrapper Dominant Class ---------------- Mutant | -10/Materials Mutant | -10/Mines Mutant | -10/Subcaves Mutant | -8/Recycling Mutant | -8/Scraptown Mutant | -6/Factory Mutant | -6/Lower Caves Scavenger-Gunner | -6/Lower Caves Scavenger-Scrapper | -5/Factory Scavenger-Scrapper | -5/Upper Caves Scavenger-Scrapper | -5/Upper Caves Scavenger-Scrapper | -5/Zhirov Scavenger-Scrapper | -4/Proximity Caves Scavenger-Scrapper | -4/Factory Derelict-Scrapper | -4/Waste Scavenger-Scrapper | -4/Factory Scavenger-Scrapper | -4/Upper Caves Scavenger-Scrapper | -4/Upper Caves Scavenger-Scrapper | -4/Warlord Scavenger-Tank | -3/Proximity Caves Scavenger-Tank | -3/Research Mutant | -2/Research Resources | -11 -10 -10 -10 -8 -8 -6 -6 -6 -5 -5 -5 -5 -4 -4 -4 -4 -4 -4 -4 -3 -3 -2 ----------- Run | Yrd Mat Min Sub Rec Scr Fac Low Low Fac Upp Upp Zhi Pro Fac Was Fac Upp Upp War Pro Res Res Matter Collected 10998 | 317 59 274 519 67 402 1538 1529 170 493 526 16 79 67 281 627 1329 167 459 965 388 207 519 Remotely . | . . . . . . . . . . . . . . . . . . . . . . . Salvage Created 16458 | 189 90 64 464 . 195 3030 600 201 2183 692 . 448 64 546 421 3306 199 355 1454 555 976 426 Parts 588 | 12 5 3 31 . 19 114 19 7 88 23 . 2 5 14 2 97 5 12 44 7 41 38 Haulers Intercepted 13 | . . . . . . 3 . . 3 . . . . . . 4 . . . . 2 1 Recyclers Shooed 15 | . 1 . . . . 6 . . 2 . . . . 2 . 2 . . . . 1 1 Parts Field Recycled . | . . . . . . . . . . . . . . . . . . . . . . . Retrieved Matter . | . . . . . . . . . . . . . . . . . . . . . . . Parts Self-Destructed 101 | . . . 11 . 16 . 19 11 . 19 . 2 4 . . . 2 12 . 5 . . Prevented 17 | . . . . . . . 10 . . 3 . . . . . . . . . 4 . . Parts Restored . | . . . . . . . . . . . . . . . . . . . . . . . Kills | -11 -10 -10 -10 -8 -8 -6 -6 -6 -5 -5 -5 -5 -4 -4 -4 -4 -4 -4 -4 -3 -3 -2 ------- Run | Yrd Mat Min Sub Rec Scr Fac Low Low Fac Upp Upp Zhi Pro Fac Was Fac Upp Upp War Pro Res Res Combat Hostiles Destroyed 249 | . . 10 14 . . 41 8 3 31 18 . . 3 9 1 27 5 5 38 6 13 17 Guns 91 | . . 1 9 . . 3 . 3 20 1 . . 1 1 1 20 . 5 17 5 4 . Cannons 46 | . . 4 4 . . 19 5 . . 4 . . . 1 . . . . . . 5 4 AOE 97 | . . 5 1 . . 9 3 . 11 13 . . 2 6 . 7 5 . 21 1 1 12 Classes Destroyed 30 | 2 2 3 3 . . 6 3 . 3 1 . . 1 . 2 2 . . 2 . . . Worker 16 | . 1 . . . . 8 . . 4 . . . . . . 1 . . . . 2 . Builder 9 | . . 1 . . . 1 . . 2 . . . . . . . . . . . 3 2 Tunneler 8 | 4 . . . . . 2 . . . . . . . . . . . . . . 1 1 Hauler 13 | . . . . . . 3 . . 3 . . . . . . 4 . . . . 2 1 Recycler 18 | 1 1 . . . . 6 . . 2 . . . . 2 . 5 . . . . . 1 Minesweeper 2 | . . . . . . . 1 . . . . . . . . . . . . 1 . . Mechanic 3 | . . . . . . . . . . . . . . . . 2 . . 1 . . . Operator 5 | . . . . . . 3 . . . . . . . . . 1 . . . . 1 . Drone 2 | . . . . . . . . . . . . . 2 . . . . . . . . . Turret 2 | . . . 2 . . . . . . . . . . . . . . . . . . . Watcher 5 | . 1 . . . . 3 . . . . . . . . . . . . . . 1 . Swarmer 54 | . . . 3 . . 15 . . 5 6 . . . 4 . . 5 . 2 . . 14 Saboteur 4 | . . . . . . . . . 2 . . . . . . . . . 2 . . . Grunt 98 | . . 1 2 . . 17 6 3 16 9 . . 1 4 . 12 . . 18 5 4 . Brawler 4 | . . . . . . . . . 1 1 . . . . . . . . 2 . . . Duelist 6 | . . . . . . 1 1 . 2 . . . . . . 1 . . 1 . . . Sentry 9 | . . . . . . 2 . . . 1 . . . 1 . 3 . 1 . 1 . . Specialist 2 | . . . . . . . . . 1 . . . . . . . . . 1 . . . Hunter 11 | . . . . . . . 1 . 2 1 . . . . . 4 . 2 1 . . . Programmer 32 | . . . . . . 5 . . 2 . . . . . . 5 . 2 6 . 9 3 Behemoth 2 | . . . . . . 1 . . . . . . . . . 1 . . . . . . Compactor 1 | . . . . . . . . . . . . . . . 1 . . . . . . . Striker 2 | . . . . . . . . . . . . . . . . . . . 2 . . . Executioner 2 | . . . . . . . . . . . . . . . . . . . 2 . . . Subdweller 9 | . . . 9 . . . . . . . . . . . . . . . . . . . Scrapoid 5 | . . . . . . . . . . . . . . . . 5 . . . . . . Decomposer 1 | . . . . . . . . . . . . . . . . . . 1 . . . . Samaritan 8 | . . . . . . . . . . 3 . . . . . . 4 . . 1 . . Assembled 9 | . . 9 . . . . . . . . . . . . . . . . . . . . Savage 1 | . . . . . . . . . . . . . . . . 1 . . . . . . Martyr 2 | . . . . . . . . . . . . . . . 2 . . . . . . . Mutant 1 | . . . . . . . 1 . . . . . . . . . . . . . . . Commander 1 | . . . . . . . . . . . . . . . . . . . 1 . . . Best Kill Streak 17 | 5 2 4 3 . . 10 3 3 9 7 . . 2 6 1 7 5 2 17 3 7 5 Combat Bots Only 16 | . . 3 3 . . 7 3 3 9 7 . . 2 5 1 6 5 2 16 3 4 5 Max Kills in Single Turn 8 | 1 1 1 1 . . 8 2 1 4 3 . . 1 3 1 2 2 2 7 1 3 4 Gunslinging 1 | . . . . . . . . . . . . . . . . 1 . 1 . . . . Exploded 7 | . . 1 1 . . 3 2 . 3 3 . . 1 3 . 2 2 . 7 1 1 4 Melee . | . . . . . . . . . . . . . . . . . . . . . . . Uniques/NPCs Destroyed . | . . . . . . . . . . . . . . . . . . . . . . . Combat | -11 -10 -10 -10 -8 -8 -6 -6 -6 -5 -5 -5 -5 -4 -4 -4 -4 -4 -4 -4 -3 -3 -2 -------- Run | Yrd Mat Min Sub Rec Scr Fac Low Low Fac Upp Upp Zhi Pro Fac Was Fac Upp Upp War Pro Res Res Hostile Shots Fired 1626 | . . 12 76 . . 289 16 4 64 49 1 . 12 125 . 258 8 52 56 71 184 349 Missed 514 | . . 2 27 . . 87 8 . 21 15 . . 2 43 . 83 4 22 19 17 45 119 Hits 1112 | . . 10 49 . . 202 8 4 43 34 1 . 10 82 . 175 4 30 37 54 139 230 Melee 7 | . . . . . . . . . 5 . . . . . . 2 . . . . . . Projectile 1105 | . . 10 49 . . 202 8 4 38 34 1 . 10 82 . 173 4 30 37 54 139 230 AOE 9 | . . . 5 . . . . . . . . . . . . . . . 4 . . . Critical Strikes 60 | . . . 3 . . 6 3 . 5 . . . . 1 . 15 . 1 4 3 8 11 Part Disruptions 5 | . . . . . . . . . . . . . . . . . 1 . . 1 2 1 Damage Taken 21796 | . . 202 1081 . . 3788 174 78 1887 533 14 . 195 1204 . 3472 60 302 862 431 2626 4887 Core 3847 | . . 30 193 . . 778 17 40 227 76 14 . . 127 . 369 . 11 88 25 382 1470 Absorbed by Shields 1908 | . . . . . . . . . . . . . . 114 . . 62 277 264 431 760 . Redirected to Shielding 94 | . . . . . . . . . . 57 . . . 37 . . . . . . . . Ignored by Resistances 587 | . . . . . . 22 . . . 4 . . . . . 50 . . . 432 79 . Regen/Repaired (Parts) 963 | . . . . . . . . . 3 8 . . . 10 206 289 . 50 353 . . 44 Core Remaining (%) 48 | 100 . . . . 10 . . 1 . . . . 68 . . . . . . 46 64 . Volleys Fired 1186 | 9 6 21 82 . 25 225 55 5 154 25 . 46 24 34 36 130 17 23 60 60 74 75 Largest 4 | 2 2 2 2 . 1 3 3 3 3 3 . 1 3 3 4 4 2 3 4 3 4 1 Hottest 324 | 40 100 50 100 . 30 255 108 86 164 227 . 20 103 228 324 324 162 162 177 176 264 120 Shots Fired 1976 | 18 11 30 119 . 25 337 71 15 251 31 1 46 37 65 68 355 29 64 134 73 120 76 Gun 1241 | 18 7 9 60 . . 77 6 15 243 3 . . 28 16 68 339 25 64 117 70 76 . Cannon 522 | . 3 9 29 . . 226 60 . 4 19 1 . 7 43 . 6 . . 1 . 42 72 Launcher 81 | . . 12 6 . . 3 5 . 4 9 . . 2 6 . 10 4 . 16 3 1 . Special 132 | . 1 . 24 . 25 31 . . . . . 46 . . . . . . . . 1 4 Kinetic 904 | 18 10 18 90 . . 85 34 15 130 3 1 . 28 16 56 162 . 61 97 38 21 21 Thermal 911 | . 1 . 24 . 25 223 32 . 117 12 . 46 7 43 12 183 25 3 20 32 55 51 Explosive 82 | . . 12 5 . . . 5 . 4 9 . . 2 6 . 10 4 . 16 3 2 4 Electromagnetic 35 | . . . . . . 3 . . . 7 . . . . . . . . . . 25 . Impact 26 | . . . . . . 26 . . . . . . . . . . . . . . . . Entropic 18 | . . . . . . . . . . . . . . . . . . . 1 . 17 . Robot Hit Streak 39 | 6 4 3 15 . 13 39 13 7 7 5 . 20 7 11 8 19 12 9 10 28 30 6 Robot Miss Streak 7 | 2 1 4 3 . 2 5 4 1 4 2 . 1 5 6 3 5 1 2 7 1 4 4 Penetration Max 2 | . . . . . . . . . 2 . . . . 1 1 1 . 1 2 . 2 . Secondary Targets 18 | . . . . . . . . . . . . . . . . 8 . 2 6 1 1 . Max Gunslinging Chain 1 | . . . . . . . . . . . . . . . . 1 . 1 1 1 1 . Shots Hit Robots 1120 | 12 7 9 58 . 20 174 42 9 115 14 . 42 14 37 38 236 21 45 67 64 80 16 Core Hits 676 | 6 4 16 29 . 7 77 29 5 65 36 . 15 6 23 21 110 15 13 113 28 34 24 Critical Kills 15 | . . . . . . . . . 2 . . . . . . 7 . 3 2 1 . . Critical Parts Destroyed 36 | . . . 1 . . 3 . . 2 1 . . . . 1 11 . 6 6 4 1 . Critical Strikes 85 | . . 1 2 . . 5 1 . 6 1 . 4 . . 2 31 1 9 8 5 8 1 Burn 20 | . . . . . . . . . 2 . . . . . . 13 1 . . . 4 . Destroy 49 | . . . 1 . . . . . 4 1 . . . . 2 18 . 9 8 5 1 . Blast 5 | . . 1 1 . . 2 1 . . . . . . . . . . . . . . . Corrupt 1 | . . . . . . . . . . . . . . . . . . . . . 1 . Smash 3 | . . . . . . 3 . . . . . . . . . . . . . . . . Sever 5 | . . . . . . . . . . . . 4 . . . . . . . . . 1 Sunder 2 | . . . . . . . . . . . . . . . . . . . . . 2 . Melee Attacks 1 | . . . . . . . . . . . . . . 1 . . . . . . . . Impact . | . . . . . . . . . . . . . . . . . . . . . . . Slashing . | . . . . . . . . . . . . . . . . . . . . . . . Piercing . | . . . . . . . . . . . . . . . . . . . . . . . Sneak Attacks 1 | . . . . . . . . . . . . . . 1 . . . . . . . . Combat Hostiles . | . . . . . . . . . . . . . . . . . . . . . . . Follow-up Attacks . | . . . . . . . . . . . . . . . . . . . . . . . Damage Inflicted 53368 | 123 114 494 1248 4 142 8626 1722 204 5145 2364 . 774 541 2117 1233 8519 991 1454 8954 1874 3991 2734 Guns 21397 | 123 57 28 768 . . 1036 110 204 3663 25 . . 228 256 1233 6317 479 1454 2542 1476 1398 . Cannons 8984 | . 56 101 335 . . 3577 1184 . . 318 . . 96 849 . 37 . . . . 1858 573 Explosions 20048 | . . 365 145 . . 2253 428 . 1482 2021 . . 217 1012 . 2146 512 . 6412 398 655 2002 Melee . | . . . . . . . . . . . . . . . . . . . . . . . Ramming 90 | . 1 . . 4 . 19 . . . . . . . . . 19 . . . . 38 9 Kinetic 16062 | 123 113 129 1219 . . 1315 585 204 2419 15 . . 228 256 1233 3198 . 1410 2250 958 349 58 Thermal 15379 | . . . . . 142 4887 709 . 1332 250 . 774 96 849 . 3443 479 44 292 518 1049 515 Explosive 17897 | . . 365 29 . . 593 428 . 1394 2021 . . 217 1012 . 1859 512 . 6412 398 655 2002 Electromagnetic 1045 | . . . . . . 101 . . . 78 . . . . . . . . . . 866 . Impact 1711 | . . . . . . 1711 . . . . . . . . . . . . . . . . Slashing 192 | . . . . . . . . . . . . . . . . . . . . . 42 150 Piercing . | . . . . . . . . . . . . . . . . . . . . . . . Entropic 992 | . . . . . . . . . . . . . . . . . . . . . 992 . Highest Corruption 38 | . . . . . . 3 2 2 22 22 22 22 22 . . 16 16 19 19 17 38 9 Average Corruption 9 | . . . . . . 2 2 2 9 22 22 22 22 . . 12 16 16 8 12 11 6 Corruption Purged 3 | . . . . . . 3 . . . . . . . . . . . . . . . . Corruption Blocked 15 | . . . . . . . . . . . . . . . . . . . . . . 15 Effects 320 | . . . . . . 17 29 3 2 33 5 10 17 . . 53 22 26 16 49 15 23 Message Errors 78 | . . . . . . 3 7 . 1 11 1 4 3 . . 8 5 12 3 12 2 6 Matter Fused 80 | . . . . . . 6 10 1 . 7 2 3 2 . . 19 7 2 2 10 1 8 Heat Flow Errors 32 | . . . . . . 2 1 1 . 2 1 . 5 . . 3 2 1 1 7 3 3 Energy Discharges 30 | . . . . . . 1 4 . . 4 . 1 2 . . 5 2 2 3 3 1 2 Parts Rejected 7 | . . . . . . . . . . . . . . . . . . 1 1 2 1 2 Parts Fused 2 | . . . . . . . 1 . . . . . . . . . . . . 1 . . Data Loss (minor) 44 | . . . . . . 3 5 1 1 6 . 1 2 . . 4 4 4 2 7 3 1 Data Loss (major) 8 | . . . . . . 1 . . . . . 1 . . . 2 1 1 1 1 . . Misfires 9 | . . . . . . 1 1 . . 1 1 . . . . 1 . . 2 1 . 1 Alerts 4 | . . . . . . . . . . . . . . . . 1 . . 1 1 1 . Misdirections 5 | . . . . . . . . . . 1 . . . . . 2 . . . . 2 . Weapon Failures 21 | . . . . . . . . . . 1 . . 3 . . 8 1 3 . 4 1 . Overload Shots 4 | . . . . . . . . . . . . . . 4 . . . . . . . . Overflow Damage 2450 | . . 2 . . . 1212 118 . 84 198 . 36 . 27 . 103 8 . 110 . 348 204 Projectiles 1279 | . . . . . . 795 118 . . . . 36 . 3 . . . . . . 315 12 Explosions 1168 | . . 2 . . . 417 . . 84 198 . . . 24 . 103 8 . 110 . 30 192 Melee 3 | . . . . . . . . . . . . . . . . . . . . . 3 . Knockbacks 19 | . . . 6 . . 12 . . . 1 . . . . . . . . . . . . Impact 7 | . . . . . . 7 . . . . . . . . . . . . . . . . Kinetic 6 | . . . 4 . . 1 . . . 1 . . . . . . . . . . . . Secondary 6 | . . . 2 . . 4 . . . . . . . . . . . . . . . . Self-Inflicted Damage 550 | . . 53 52 . . 293 . . . . . . . . . 9 . . . . 139 4 Shots 11 | . . 2 2 . . 5 . . . . . . . . . . . . . . 2 . Rammed 13 | . 1 . . 1 . 3 . . . . . . . . . 3 . . . . 4 1 Targets Rammed 13 | . 1 . . 1 . 3 . . . . . . . . . 3 . . . . 4 1 Kicked . | . . . . . . . . . . . . . . . . . . . . . . . Crushed . | . . . . . . . . . . . . . . . . . . . . . . . Highest Temperature 495 | . 20 15 . . . 378 116 124 495 200 200 . 200 200 425 342 387 375 261 195 200 370 Average Temperature 105 | . 10 11 . . . 110 38 40 124 96 150 . 98 117 107 111 104 116 89 74 103 88 Received Heat Transfer 2068 | . . 18 132 . . 747 61 27 171 72 . . 18 78 . 281 . . 49 137 88 189 Effects 15 | . . . . . . 4 . . 5 . . . . 1 . 4 . . 1 . . . Shutdowns 2 | . . . . . . . . . 2 . . . . . . . . . . . . . Energy Bleed 4 | . . . . . . . . . 1 . . . . 1 . 1 . . 1 . . . Interference 8 | . . . . . . 3 . . 2 . . . . . . 3 . . . . . . Damage (minor) 1 | . . . . . . 1 . . . . . . . . . . . . . . . . Siege Activations . | . . . . . . . . . . . . . . . . . . . . . . . Martial Activations . | . . . . . . . . . . . . . . . . . . . . . . . Shielding Activations . | . . . . . . . . . . . . . . . . . . . . . . . Robots Disrupted . | . . . . . . . . . . . . . . . . . . . . . . . Combat Hostiles . | . . . . . . . . . . . . . . . . . . . . . . . Robots Corrupted 13 | . . . . . . 10 . . . . . . . . . . . . . . 3 . Combat Hostiles 13 | . . . . . . 10 . . . . . . . . . . . . . . 3 . Parts Fried 21 | . . . . . . 14 . . . 1 . . . . . . . . . 1 5 . Impact Corruptions 21 | . . . . . . 20 . . . . . . . . . . . . . . 1 . Robots Melted 2 | . . . . . . . . . . . . . . 1 . 1 . . . . . . Combat Hostiles 1 | . . . . . . . . . . . . . . 1 . . . . . . . . Parts Melted 58 | . . . . . . 9 . . 3 . . . 1 4 . 25 1 . 1 5 9 . Heat Transferred 24202 | . . . . . 500 5769 1100 . 2474 387 . 1367 150 1130 . 6010 851 74 444 1038 2464 444 Parts Sabotaged . | . . . . . . . . . . . . . . . . . . . . . . . Parts Stolen . | . . . . . . . . . . . . . . . . . . . . . . . Parts Stripped . | . . . . . . . . . . . . . . . . . . . . . . . Power Chain Reactions . | . . . . . . . . . . . . . . . . . . . . . . . Alert | -11 -10 -10 -10 -8 -8 -6 -6 -6 -5 -5 -5 -5 -4 -4 -4 -4 -4 -4 -4 -3 -3 -2 ------- Run | Yrd Mat Min Sub Rec Scr Fac Low Low Fac Upp Upp Zhi Pro Fac Was Fac Upp Upp War Pro Res Res Maximum Alert Level 5 | . . . . . . 5 . . 5 . . . . 1 . 5 . . . . . 3 Low Security (%) 61 | 100 100 100 . 100 . 51 . . . . . . . 64 100 27 . . . . 100 58 Level 1 7 | . . . . . . 14 . . 6 . . . . 35 . 4 . . . . . 7 Level 2 5 | . . . . . . 10 . . 8 . . . . . . 5 . . . . . 9 Level 3 7 | . . . . . . 1 . . 33 . . . . . . 14 . . . . . 23 Level 4 11 | . . . . . . 15 . . 31 . . . . . . 23 . . . . . . Level 5 2 | . . . . . . 6 . . . . . . . . . 5 . . . . . . High Security 4 | . . . . . . . . . 19 . . . . . . 17 . . . . . . Max Security . | . . . . . . . . . . . . . . . . . . . . . . . Peak Influence 2055 | 15 30 51 . 15 . 1608 . . 2055 . . . . 249 71 1906 . . . . 172 946 Initial 249 | . . . . 15 . . . . 249 . . . . . 61 . . . . . . 81 Average 411 | 2 4 6 . 1 . 471 . . 1157 . . . . 157 12 880 . . . . 42 324 Influence Increases 12322 | 25 59 109 300 . 15 2272 220 101 2348 430 . 15 30 375 86 2668 110 120 810 135 602 1492 Destroy 0b10 Robot/C 5260 | . . 20 140 . . 820 160 80 880 360 . . 20 180 . 920 100 100 760 120 260 340 Destroy 0b10 Robot/NC 515 | 25 15 5 . . 15 140 10 . 80 . . 15 10 10 . 95 . . 5 15 50 25 Destroy Leader 780 | . 2 10 10 . . 180 20 10 138 40 . . . 30 . 212 10 20 . . 56 42 Allied During Kill 559 | . . . . . . . . 11 132 . . . . . . 416 . . . . . . Successful Hack 274 | . 10 . . . . 144 . . 53 . . . . . . 32 . . . . 30 5 Select Force Hacks 30 | . 30 . . . . . . . . . . . . . . . . . . . . . Disable Machine 1335 | . . . . . . 510 . . 330 . . . . 45 . 315 . . . . 75 60 Anti-Garrison Action 150 | . . . . . . . . . . . . . . . . 150 . . . . . . Destroy Structure 1724 | . 2 74 . . . 223 . . 420 . . . . 110 86 438 . . . . 116 255 Partial Spotted 60 | . . . . . . 15 . . 15 . . . . . . . . . . . . 30 Lose Combat Pursuer 1635 | . . . 150 . . 240 30 . 300 30 . . . . . 90 . . 45 . 15 735 Influence Decreases 11413 | 25 59 88 289 32 15 667 1237 292 690 1079 308 1113 30 200 261 762 936 468 974 703 456 729 Entered New Map 5402 | . . . 12 17 . . 595 112 148 761 268 1098 . . 114 . 706 206 732 568 . 65 Time Decay 4594 | 25 59 88 257 15 15 467 612 120 342 318 40 15 30 170 147 412 230 262 212 125 299 334 Search Patrol Dispatched 100 | . . . . . . . . . . . . . . . . . . . . . . 100 Lost Part 827 | . . . 20 . . 180 10 . 80 . . . . 30 . 90 . . 30 10 157 220 Lost Ally 490 | . . . . . . 20 20 60 120 . . . . . . 260 . . . . . 10 Squads Dispatched 86 | . 2 . . . . 24 . . 14 . . . . 2 . 25 . . . . 6 13 Investigation 29 | . 1 . . . . 10 . . 5 . . . . 1 . 5 . . . . 3 4 Extermination 14 | . . . . . . 6 . . 1 . . . . . . 3 . . . . 2 2 Reinforcement 15 | . 1 . . . . 4 . . 2 . . . . . . 2 . . . . 1 5 Assault 25 | . . . . . . 4 . . 6 . . . . . . 13 . . . . . 2 Garrison 3 | . . . . . . . . . . . . . . 1 . 2 . . . . . . Intercept . | . . . . . . . . . . . . . . . . . . . . . . . Searches Triggered 1 | . . . . . . . . . . . . . . . . . . . . . . 1 Construction Impeded 4 | . . . . . . . . . 1 . . . . . . . . . . . 1 2 Haulers Reinforced 3 | . . . . . . . . . 1 . . . . . . 1 . . . . . 1 Active Scanning Responses . | . . . . . . . . . . . . . . . . . . . . . . . Cargo Convoy Interrupts . | . . . . . . . . . . . . . . . . . . . . . . . Stealth | -11 -10 -10 -10 -8 -8 -6 -6 -6 -5 -5 -5 -5 -4 -4 -4 -4 -4 -4 -4 -3 -3 -2 --------- Run | Yrd Mat Min Sub Rec Scr Fac Low Low Fac Upp Upp Zhi Pro Fac Was Fac Upp Upp War Pro Res Res Distress Signals 27 | . 1 . . . . 4 . . 2 . . . . 2 . 6 . . . . . 12 Communications Jammed 7 | . . . . . . . . . . . . . . . . . . . . . . 7 Distress Signals 7 | . . . . . . . . . . . . . . . . . . . . . . 7 Times Spotted 517 | . 7 10 17 . . 68 10 3 62 21 2 . 2 11 5 73 5 4 67 8 41 101 Peak Tracking Total 26 | . 5 2 6 . . 10 3 3 8 5 5 . 1 4 4 13 5 2 19 4 16 26 Tactical Retreats 44 | . . . 3 . . 10 2 . 8 1 . . . . . 3 . . 2 . 1 14 Traps | -11 -10 -10 -10 -8 -8 -6 -6 -6 -5 -5 -5 -5 -4 -4 -4 -4 -4 -4 -4 -3 -3 -2 ------- Run | Yrd Mat Min Sub Rec Scr Fac Low Low Fac Upp Upp Zhi Pro Fac Was Fac Upp Upp War Pro Res Res Traps Triggered 19 | . . . . . . 4 . . 2 . . . . 3 . 1 1 . . 1 3 4 Indirectly . | . . . . . . . . . . . . . . . . . . . . . . . Trap Hack Attempts . | . . . . . . . . . . . . . . . . . . . . . . . Triggered . | . . . . . . . . . . . . . . . . . . . . . . . Disarmed . | . . . . . . . . . . . . . . . . . . . . . . . Reprogrammed 4 | . . . . . . 4 . . . . . . . . . . . . . . . . Reused 1 | . . . . . . . . . . . . . . . . . . . . 1 . . Traps Extracted . | . . . . . . . . . . . . . . . . . . . . . . . Installed 1 | . . . . . . . . . . . . . . . . . . . . 1 . . Triggered 1 | . . . . . . . . . . . . . . . . . . . . 1 . . Most Traps Carried 1 | . . . . . . . . . . . . . . . . . . . . 1 . . Machines | -11 -10 -10 -10 -8 -8 -6 -6 -6 -5 -5 -5 -5 -4 -4 -4 -4 -4 -4 -4 -3 -3 -2 ---------- Run | Yrd Mat Min Sub Rec Scr Fac Low Low Fac Upp Upp Zhi Pro Fac Was Fac Upp Upp War Pro Res Res Machines Disabled 94 | . . . 1 . . 34 . . 22 . . 1 . 3 . 22 . . 2 . 5 4 Max in Single Turn 21 | . . . 1 . . 21 . . 4 . . 1 . 2 . 2 . . 1 . 1 1 Garrison Access 5 | . . . . . . 1 . . 1 . . . . 1 . 1 . . . . . 1 Machines Repaired . | . . . . . . . . . . . . . . . . . . . . . . . Machines Dismantled 1 | . . . . . . . . . . . . 1 . . . . . . . . . . Machines Sabotaged . | . . . . . . . . . . . . . . . . . . . . . . . Overloaded Fab Kills . | . . . . . . . . . . . . . . . . . . . . . . . Hacking | -11 -10 -10 -10 -8 -8 -6 -6 -6 -5 -5 -5 -5 -4 -4 -4 -4 -4 -4 -4 -3 -3 -2 --------- Run | Yrd Mat Min Sub Rec Scr Fac Low Low Fac Upp Upp Zhi Pro Fac Was Fac Upp Upp War Pro Res Res Machines Accessed 91 | . 3 . . . 5 29 . . 11 1 . 6 1 3 . 13 1 . 1 . 8 9 Terminals 34 | . 2 . . . . 12 . . 5 1 . . 1 . . 5 . . . . 5 3 Fabricators 6 | . . . . . . 5 . . . . . . . . . 1 . . . . . . Repair Stations 4 | . . . . . . 2 . . . . . . . . . 1 . . . . . 1 Recycling Units 19 | . 1 . . . . 6 . . 4 . . . . 1 . 4 . . . . . 3 Scanalyzers 8 | . . . . . . 2 . . 1 . . . . 1 . 1 . . . . 2 1 Garrison Access 7 | . . . . . . 2 . . 1 . . . . 1 . 1 . . . . 1 1 Total Hacks 215 | . 7 . . . 11 79 . . 22 1 . 19 1 4 . 29 1 . 1 . 19 21 Successful 121 | . 3 . . . 11 39 . . 14 1 . 19 1 4 . 16 1 . 1 . 4 7 Failed 93 | . 4 . . . . 39 . . 8 . . . . . . 13 . . . . 15 14 Catastrophic 13 | . 1 . . . . 3 . . 2 . . . . . . 1 . . . . 4 2 Database Lockouts 1 | . . . . . . 1 . . . . . . . . . . . . . . . . Manual 100 | . 7 . . . . 41 . . 18 . . . . 1 . 15 . . . . 9 9 Terminals 91 | . 5 . . . . 35 . . 12 1 . . 1 . . 11 . . . . 14 12 Fabricators 15 | . . . . . . 13 . . . . . . . . . 2 . . . . . . Repair Stations 9 | . . . . . . 5 . . . . . . . . . 2 . . . . . 2 Recycling Units 37 | . 2 . . . . 17 . . 7 . . . . 1 . 6 . . . . . 4 Scanalyzers 23 | . . . . . . 7 . . 2 . . . . 2 . 7 . . . . 3 2 Garrison Access 8 | . . . . . . 2 . . 1 . . . . 1 . 1 . . . . 2 1 Terminal Hacks 49 | . . . . . 11 8 . . 3 1 . 19 1 . . 2 1 . 1 . 1 1 Record 20 | . . . . . 11 . . . . 1 . 7 1 . . . . . . . . . Part Schematic 4 | . . . . . . . . . . . . 4 . . . . . . . . . . Robot Schematic 1 | . . . . . . 1 . . . . . . . . . . . . . . . . Robot Analysis 5 | . . . . . . 1 . . . . . 4 . . . . . . . . . . Prototype ID Bank 4 | . . . . . . . . . . . . 4 . . . . . . . . . . Open Door 2 | . . . . . . . . . . . . . . . . . 1 . 1 . . . Branch Access Points 2 | . . . . . . . . . 1 . . . . . . 1 . . . . . . Machine Index 1 | . . . . . . 1 . . . . . . . . . . . . . . . . Terminal Index 5 | . . . . . . 1 . . 1 . . . . . . 1 . . . . 1 1 Alert Level 2 | . . . . . . 1 . . 1 . . . . . . . . . . . . . Reprogram Traps 1 | . . . . . . 1 . . . . . . . . . . . . . . . . Patrol Status 1 | . . . . . . 1 . . . . . . . . . . . . . . . . Hauler Manifests 1 | . . . . . . 1 . . . . . . . . . . . . . . . . Fabricator Hacks 4 | . . . . . . 4 . . . . . . . . . . . . . . . . Load Schematic 3 | . . . . . . 3 . . . . . . . . . . . . . . . . Build 1 | . . . . . . 1 . . . . . . . . . . . . . . . . Repair Station Hacks 3 | . . . . . . 1 . . . . . . . . . . . . . . . 2 Scan Component 1 | . . . . . . . . . . . . . . . . . . . . . . 1 Repair 1 | . . . . . . . . . . . . . . . . . . . . . . 1 Refit 1 | . . . . . . 1 . . . . . . . . . . . . . . . . Recycling Unit Hacks 2 | . . . . . . 2 . . . . . . . . . . . . . . . . Retrieve Components 2 | . . . . . . 2 . . . . . . . . . . . . . . . . Scanalyzer 16 | . . . . . . 4 . . 2 . . . . 2 . 7 . . . . 1 . Insert Component 6 | . . . . . . 2 . . . . . . . . . 4 . . . . . . Analyze 5 | . . . . . . 2 . . . . . . . . . 3 . . . . . . Retrieve Study 5 | . . . . . . . . . 2 . . . . 2 . . . . . . 1 . Garrison Access Hacks 3 | . . . . . . 1 . . 1 . . . . 1 . . . . . . . . Seal Access 3 | . . . . . . 1 . . 1 . . . . 1 . . . . . . . . Unauthorized Hacks 44 | . 3 . . . . 19 . . 8 . . . . 1 . 7 . . . . 2 4 Terminals 26 | . 2 . . . . 13 . . 4 . . . . . . 3 . . . . 2 2 Track 2 | . . . . . . 2 . . . . . . . . . . . . . . . . Assimilate 2 | . . . . . . 2 . . . . . . . . . . . . . . . . Botnet 3 | . . . . . . 1 . . . . . . . . . . . . . . 1 1 Operators 4 | . 1 . . . . 1 . . 1 . . . . . . . . . . . . 1 Skim 14 | . 1 . . . . 7 . . 3 . . . . . . 2 . . . . 1 . Search 1 | . . . . . . . . . . . . . . . . 1 . . . . . . Fabricators . | . . . . . . . . . . . . . . . . . . . . . . . Repair Stations . | . . . . . . . . . . . . . . . . . . . . . . . Recycling Units 18 | . 1 . . . . 6 . . 4 . . . . 1 . 4 . . . . . 2 Recyclers 1 | . . . . . . 1 . . . . . . . . . . . . . . . . Tunnel 1 | . 1 . . . . . . . . . . . . . . . . . . . . . Fedlink 13 | . . . . . . 5 . . 3 . . . . 1 . 2 . . . . . 2 Scrapoids 3 | . . . . . . . . . 1 . . . . . . 2 . . . . . . Scanalyzers . | . . . . . . . . . . . . . . . . . . . . . . . Garrison Access . | . . . . . . . . . . . . . . . . . . . . . . . Data Cores Recovered 3 | . . . . . . 1 . . . . . . . . . 1 . . . . 1 . Used 2 | . . . . . . 1 . . . . . . . . . . . . . . 1 . Hacking Detections 57 | . 2 . . . . 24 . . 7 . . . . 1 . 8 . . . . 8 7 Full Trace Events 9 | . . . . . . 5 . . . . . . . . . . . . . . 2 2 Feedback Events 1 | . . . . . . 1 . . . . . . . . . . . . . . . . Corruption 1 | . . . . . . 1 . . . . . . . . . . . . . . . . Feedback Blocked . | . . . . . . . . . . . . . . . . . . . . . . . Robot Schematics Acquired 1 | . . . . . . 1 . . . . . . . . . . . . . . . . Robots Built . | . . . . . . . . . . . . . . . . . . . . . . . Authchips . | . . . . . . . . . . . . . . . . . . . . . . . Time . | . . . . . . . . . . . . . . . . . . . . . . . Total Robot Build Rating . | . . . . . . . . . . . . . . . . . . . . . . . Part Schematics Acquired 8 | . . . . . . 2 . . . . . 4 . . . 2 . . . . . . Parts Built 1 | . . . . . . 1 . . . . . . . . . . . . . . . . Authchips . | . . . . . . . . . . . . . . . . . . . . . . . Time 47 | . . . . . . 47 . . . . . . . . . . . . . . . . Total Part Build Rating 5 | . . . . . . 5 . . . . . . . . . . . . . . . . Part Studies Acquired 5 | . . . . . . . . . 2 . . . . 2 . . . . . . 1 . Parts Repaired 1 | . . . . . . . . . . . . . . . . . . . . . . 1 Time 44 | . . . . . . . . . . . . . . . . . . . . . . 44 Parts Recycled . | . . . . . . . . . . . . . . . . . . . . . . . Recycled Matter . | . . . . . . . . . . . . . . . . . . . . . . . Retrieved Matter . | . . . . . . . . . . . . . . . . . . . . . . . Retrieved Components 3 | . . . . . . 3 . . . . . . . . . . . . . . . . Parts Scanalyzed 4 | . . . . . . 2 . . . . . . . . . 2 . . . . . . Part Schematics Acquired 4 | . . . . . . 2 . . . . . . . . . 2 . . . . . . Parts Damaged 1 | . . . . . . 1 . . . . . . . . . . . . . . . . Bothacking | -11 -10 -10 -10 -8 -8 -6 -6 -6 -5 -5 -5 -5 -4 -4 -4 -4 -4 -4 -4 -3 -3 -2 ------------ Run | Yrd Mat Min Sub Rec Scr Fac Low Low Fac Upp Upp Zhi Pro Fac Was Fac Upp Upp War Pro Res Res Used RIF Installer . | . . . . . . . . . . . . . . . . . . . . . . . Robots Hacked 1 | . . . . . . . . . . . . . . 1 . . . . . . . . Non-combat 1 | . . . . . . . . . . . . . . 1 . . . . . . . . Combat . | . . . . . . . . . . . . . . . . . . . . . . . Robot Hacks Applied 1 | . . . . . . . . . . . . . . 1 . . . . . . . . find_chute 1 | . . . . . . . . . . . . . . 1 . . . . . . . . Relay Couplers Released 5 | . . . . . . . . . . . . . . 2 . 1 . . . . . 2 Machine Destruction 5 | . . . . . . . . . . . . . . 2 . 1 . . . . . 2 Fabnet Peak Effective % . | . . . . . . . . . . . . . . . . . . . . . . . Robots Rewired . | . . . . . . . . . . . . . . . . . . . . . . . Allies Hacked 1 | . . . . . . . . . . . . . . . . 1 . . . . . . Hacks Repelled . | . . . . . . . . . . . . . . . . . . . . . . . Allies | -11 -10 -10 -10 -8 -8 -6 -6 -6 -5 -5 -5 -5 -4 -4 -4 -4 -4 -4 -4 -3 -3 -2 -------- Run | Yrd Mat Min Sub Rec Scr Fac Low Low Fac Upp Upp Zhi Pro Fac Was Fac Upp Upp War Pro Res Res Total Allies 41 | . . . . . . 2 5 . 5 . . . . . 19 10 . . . . . . Largest Group 19 | . . . . . . 1 5 4 5 . . . . . 19 13 . . . . . . Highest-Rated Group 684 | . . . . . . 26 235 188 235 . . . . . 684 484 . . . . . . Highest-Rated Ally 50 | . . . . . . 26 47 47 47 . . . . . 50 50 . . . . . . Initial UFD Resources 78 | . . . . . . 23 43 43 45 58 58 58 62 62 72 72 72 72 72 76 76 78 Total Orders 16 | . . . . . . . . . . . . . . 1 . 5 . . 7 . 1 2 STAY 4 | . . . . . . . . . . . . . . . . 2 . . 1 . . 1 FOLLOW 1 | . . . . . . . . . . . . . . . . 1 . . . . . . EXPLORE 8 | . . . . . . . . . . . . . . 1 . 1 . . 4 . 1 1 RETURN 3 | . . . . . . . . . . . . . . . . 1 . . 2 . . . Ally Attacks 398 | . . . . . . . 24 12 84 . . . . . 101 177 . . . . . . Total Damage 10921 | . . . . . . . 565 296 2107 . . . . . 3500 4453 . . . . . . Kills 54 | . . . . . . . . 1 18 . . . . . 9 26 . . . . . . Allies Corrupted . | . . . . . . . . . . . . . . . . . . . . . . . Allies Melted 1 | . . . . . . . . . . . . . . . . 1 . . . . . . Intel | -11 -10 -10 -10 -8 -8 -6 -6 -6 -5 -5 -5 -5 -4 -4 -4 -4 -4 -4 -4 -3 -3 -2 ------- Run | Yrd Mat Min Sub Rec Scr Fac Low Low Fac Upp Upp Zhi Pro Fac Was Fac Upp Upp War Pro Res Res Active Infowar (turns) 13222 | 35 370 664 203 . . 1236 2012 249 719 449 94 304 341 375 985 1019 324 350 450 1307 918 818 Optics 6419 | . . . . . . 101 1857 249 719 . . . . . . . . . 450 1307 918 818 Sensors 3094 | . . . . . . 562 . . . . . . . . . 691 324 350 258 63 846 . IFF 2598 | . . . . . . . 610 249 158 . . . . 269 984 328 . . . . . . Terrain 1831 | . . . . . . 186 . . . . . . 245 278 . . . . . . 637 485 Seismic 2665 | 35 370 664 203 . . 1016 4 . . . . . . . . . . . . . . 373 Decoding 2603 | . . . . . . . . . . 449 94 304 341 375 985 55 . . . . . . Cloaking 98 | . . . . . . . 93 . . . . . . . . . . . . . . 5 Jamming 65 | . . . . . . . . . . . . . . . . . . . . . . 65 Robot Analysis Total 5 | . . . . . . 1 . . . . . 4 . . . . . . . . . . Derelict Logs Recovered 15 | . . 1 1 . 2 . 2 1 . 2 . . 1 . . . 2 3 . . . . Drone Launches 9 | . . . . . . . . . . . . . . 1 . 1 . . 3 . 1 3 Drone Recoveries 8 | . . . . . . . . . . . . . . 1 . 1 . . 3 . 1 2 Decoded 0b10 Intel 6 | . . . . . . . . . . . . . . 6 . . . . . . . . Traps 2 | . . . . . . . . . . . . . . 2 . . . . . . . . Emergency Access 4 | . . . . . . . . . . . . . . 4 . . . . . . . . Exploration | -11 -10 -10 -10 -8 -8 -6 -6 -6 -5 -5 -5 -5 -4 -4 -4 -4 -4 -4 -4 -3 -3 -2 ------------- Run | Yrd Mat Min Sub Rec Scr Fac Low Low Fac Upp Upp Zhi Pro Fac Was Fac Upp Upp War Pro Res Res Turns Passed 22345 | 136 370 938 1860 384 2679 3307 2013 249 948 711 94 304 341 375 985 1570 490 567 981 1307 918 818 Spaces Moved 15118 | 63 178 355 884 238 1554 2326 1724 176 725 725 116 165 321 269 783 1184 437 455 627 500 460 853 Core 277 | 3 . . . . . 268 . . . . . . . . . 3 . . 2 . . 1 Treads 4894 | 60 178 355 884 238 1554 876 181 92 . . . . . . . . . . . 443 26 7 Legs . | . . . . . . . . . . . . . . . . . . . . . . . Wheels 6351 | . . . . . . . . 84 725 725 116 165 321 269 746 1181 437 455 625 57 434 11 Hover 3596 | . . . . . . 1182 1543 . . . . . . . 37 . . . . . . 834 Flight . | . . . . . . . . . . . . . . . . . . . . . . . Fastest Speed 38 | 50 160 160 160 160 160 45 45 70 70 80 80 80 80 80 80 80 90 100 90 110 80 38 Average Speed 111 | 154 160 160 160 160 164 99 88 121 79 82 80 80 80 88 96 90 98 100 99 225 129 55 Slowest Speed 1650 | 160 160 160 160 160 245 250 240 160 80 90 80 80 80 90 210 400 100 100 1650 240 400 550 Overloaded Moves 90 | . . . . . . . . . . . . . . . . . . . . . . 90 Propulsion Burnouts . | . . . . . . . . . . . . . . . . . . . . . . . Robots Hopped . | . . . . . . . . . . . . . . . . . . . . . . . Potential Cave-ins 46 | . . . . . . 7 . . 24 . . . . . . 3 . . . . . 12 Cave-ins Triggered 5 | . . . . . . . . . 3 . . . . . . . . . . . 1 1 Teleports 1 | . . . . . . . . . . . . . . . . . . . . . 1 . Exploration Rate (%) 52 | 5 33 66 46 42 83 54 98 30 27 75 29 62 60 12 94 28 64 71 94 74 20 39 Regions Visited 22 Branch Regions 14 Pre-discovered Areas 15 | . 1 1 2 . 3 1 1 . . . . 3 . . . . . 3 . . . . Known Exits Taken 8 | . . . . . . 1 1 1 1 . . . . . . 1 1 1 . 1 . . Unknown Exits Taken 12 | 1 1 1 1 1 1 . . . . 1 1 1 1 . . . . . 1 . 1 . Scrap Searched 25 | . . . 2 . 6 . 3 2 . 3 1 . 1 . . . 2 4 . 1 . . Spaces Dug 300 | . 1 49 55 . . 43 5 . 31 . . . 3 5 . 20 34 . 10 . 5 39 Terrain Destroyed 1629 | . 1 105 66 . . 242 81 1 285 94 . . 37 70 13 180 59 38 132 45 75 105 Melee . | . . . . . . . . . . . . . . . . . . . . . . . Projectile 614 | . 1 . 19 . . 103 20 1 144 1 . . 21 16 13 83 . 38 37 28 34 55 AOE 1014 | . . 105 47 . . 139 61 . 141 93 . . 16 54 . 97 59 . 95 17 40 50 Terrain Rammed . | . . . . . . . . . . . . . . . . . . . . . . . Walls Destroyed . | . . . . . . . . . . . . . . . . . . . . . . . Machines Disabled . | . . . . . . . . . . . . . . . . . . . . . . . Actions | -11 -10 -10 -10 -8 -8 -6 -6 -6 -5 -5 -5 -5 -4 -4 -4 -4 -4 -4 -4 -3 -3 -2 --------- Run | Yrd Mat Min Sub Rec Scr Fac Low Low Fac Upp Upp Zhi Pro Fac Was Fac Upp Upp War Pro Res Res Total 19217 | 80 248 693 1161 240 1646 3003 2144 205 982 809 117 237 371 352 946 1525 463 544 960 643 726 1122 Wait 2013 | . 50 311 147 1 23 255 287 7 67 36 . . 16 11 85 108 5 58 215 63 146 122 Move 15094 | 62 177 354 883 237 1553 2325 1723 175 721 724 115 164 320 269 782 1183 436 454 626 499 459 853 Hop . | . . . . . . . . . . . . . . . . . . . . . . . Pick Up 143 | 2 7 1 9 . 15 32 14 2 6 5 1 3 2 4 2 10 . 1 12 3 1 11 Fast Attach 155 | 7 . . 3 1 . 41 15 5 3 4 . 1 . 3 14 21 . 1 6 5 5 20 Attach 114 | . . . 2 . 3 32 8 1 3 4 . 2 2 6 1 4 . 1 6 3 15 21 Detach 77 | . . . . . . 28 6 1 2 4 . . . 2 3 7 . . 4 1 6 13 Swap 181 | . 5 5 17 . 14 19 8 . 8 4 . 3 4 6 8 31 5 5 22 5 10 2 Drop 191 | . 2 1 13 . 13 43 27 9 7 3 1 4 3 8 15 19 . 1 9 3 6 4 Fire 1186 | 9 6 21 82 . 25 225 55 5 154 25 . 46 24 34 36 130 17 23 60 60 74 75 Melee 1 | . . . . . . . . . . . . . . 1 . . . . . . . . Ram 9 | . . . . . . 2 . . . . . . . . . 3 . . . . 3 1 Kick . | . . . . . . . . . . . . . . . . . . . . . . . Crush 4 | . 1 . . 1 . 1 . . . . . . . . . . . . . . 1 . Escape Stasis 26 | . . . . . . . . . 11 . . . . 7 . 8 . . . . . . Rewire 7 | . . . . . . . . . . . . 6 . . . 1 . . . . . . Trap 1 | . . . . . . . . . . . . . . . . . . . . 1 . . Miscellaneous 15 | . . . 5 . . . 1 . . . . 8 . 1 . . . . . . . . Route ------- -11/Scrapyard -10/Materials -10/Mines (discovered 2 exits: [*Mat] / [*Sub]) -10/Subcaves (discovered 2 exits: [*Mat] / [*Rec]) -8/Recycling -8/Scraptown -6/Factory (discovered 6 exits: *Fac x4 / *Low x2) -6/Lower Caves -6/Lower Caves -5/Factory (discovered 3 exits: *Fac / *Upp x2) -5/Upper Caves -5/Upper Caves -5/Zhirov -4/Proximity Caves -4/Factory -4/Waste -4/Factory (discovered 6 exits: *Res / *Upp x2 / Ext x2 / Arm) -4/Upper Caves -4/Upper Caves -4/Warlord -3/Proximity Caves -3/Research (discovered 2 exits: *Res / Tes) -2/Research (discovered 1 exit: Qua) History --------- Turn | Location | Event 2 | -11/Scrapyard | Met Revision 17 4 | -11/Scrapyard | Discovered new exit (range 16) 137 | -11/Scrapyard | Entered Materials 305 | -10/Materials | Build established: Mutant 494 | -10/Materials | Discovered new exit (range 7) 507 | -10/Materials | Entered Mines 544 | -10/Mines | Assembled infested the area 547 | -10/Mines | Received a Rocket Launcher from a helpful Derelict 786 | -10/Mines | Discovered new exit (range 10) 845 | -10/Mines | Learned location of Zion (-6) 1427 | -10/Mines | Discovered new exit (range 9) 1445 | -10/Mines | Entered Subcaves 1446 | -10/Subcaves | Approached by a straggling Scientist 1450 | -10/Subcaves | Shifting Twisted Machinery released Sub. Machine Gun 1451 | -10/Subcaves | Shifting Twisted Machinery released Sub. Monowheel 1641 | -10/Subcaves | Met a Zionite searching for "candidates" 1969 | -10/Subcaves | Discovered new exit (range 15) 2303 | -10/Subcaves | Ambushed by Subdweller buried in earth 2532 | -10/Subcaves | Core integrity fell below 50% 2710 | -10/Subcaves | Discovered new exit (range 4) 2814 | -10/Subcaves | Shifting Twisted Machinery released Barrage Gun 3013 | -10/Subcaves | Build established: Subdweller-Mutant 3056 | -10/Subcaves | Core integrity fell below 20% 3073 | -10/Subcaves | Shifting Twisted Machinery released Barrage Gun 3305 | -10/Subcaves | Entered Recycling 3350 | -8/Recycling | Build established: Mutant 3651 | -8/Recycling | Scanned before Scraplab entrance 3673 | -8/Recycling | Entered Scraplab 3687 | -8/Recycling | Discovered new exit (range 2) 3689 | -8/Recycling | Entered Scraptown 3707 | -8/Scraptown | Heard Great Nut preacher, LISTEN AND RECITE! 3990 | -8/Scraptown | Visited UFD Registry 3990 | -8/Scraptown | Registered with UFD as "Beamcoil" 4102 | -8/Scraptown | Delivered Scrap Shield to a Scientist 4181 | -8/Scraptown | Visited Curators Association 4237 | -8/Scraptown | Visited Derelict Rescue Squad 4247 | -8/Scraptown | Found DRS Beacon 4277 | -8/Scraptown | Visited Supply Room 4338 | -8/Scraptown | Visited Junk Cannon Lab 4346 | -8/Scraptown | Found Prototype Special Weapon 4421 | -8/Scraptown | Visited Symbiants 4640 | -8/Scraptown | Visited Bundlers 4864 | -8/Scraptown | Scanned Subdweller tech in exchange for log data 4869 | -8/Scraptown | Learned location of Testing (-3) 4871 | -8/Scraptown | Learned location of 2 exits from Lower Caves 5082 | -8/Scraptown | Visited Spacefarers 5128 | -8/Scraptown | Learned location of Extension (-4) 5234 | -8/Scraptown | Visited Cyclists 5250 | -8/Scraptown | Entered Cyclist Reading Room 5438 | -8/Scraptown | Visited Scrapoid Pod Storage 5471 | -8/Scraptown | Visited Science Testing Area 5614 | -8/Scraptown | Visited Junk Repository 5695 | -8/Scraptown | Visited Chapter 10 5984 | -8/Scraptown | Found Scrapoid Pod 6071 | -8/Scraptown | Visited Scrap Suit Storage 6090 | -8/Scraptown | Identified Junk Cannon 6254 | -8/Scraptown | Met Optimus 6254 | -8/Scraptown | Accepted into 0bPrime 6362 | -8/Scraptown | Discovered new exit (range 5) 6368 | -8/Scraptown | Entered Factory 6368 | -6/Factory | Evolved 8 slots: Power x1, Propulsion x2, Utility x4, Weapon x1 6759 | -6/Factory | Loaded intel: 8 recycling unit locations 7074 | -6/Factory | Learned location of Protoforge (-2) 7369 | -6/Factory | Discovered new exit (range 11) 7410 | -6/Factory | Build established: Gunner 7774 | -6/Factory | Discovered new exit (range 8) 7937 | -6/Factory | Central database locked down 8163 | -6/Factory | Destroyed 7 combat bots 8214 | -6/Factory | Spotted B-75 Beast 8333 | -6/Factory | Destroyed B-75 Beast 8359 | -6/Factory | Lost 11 parts (2p3n2u4w) 8522 | -6/Factory | Core integrity fell below 50% 8548 | -6/Factory | Discovered new exit (range 5) 8611 | -6/Factory | Identified exit to Lower Caves 8625 | -6/Factory | Lost 3 parts (1p2n) 8818 | -6/Factory | First assault squad dispatched 8920 | -6/Factory | Build established: Mutant 8964 | -6/Factory | Fabricated Lrn. Missile Launcher (x1) 9146 | -6/Factory | Core integrity fell below 20% 9304 | -6/Factory | Identified exit to Factory 9337 | -6/Factory | Loaded intel: 26 terminal locations 9359 | -6/Factory | Learned location of 1 exit from Extension 9369 | -6/Factory | Loaded intel: 4 garrison access locations 9372 | -6/Factory | Learned 2 Proximity Caves zone layouts 9675 | -6/Factory | Entered Lower Caves 9676 | -6/Lower Caves | Encountered a Warlord checkpoint 9676 | -6/Lower Caves | Identified exit to Lower Caves 9677 | -6/Lower Caves | UFD Scientist delivered a prototype 9679 | -6/Lower Caves | Found Prototype Protection 9679 | -6/Lower Caves | Identified Enh. Scrap Shield 10336 | -6/Lower Caves | Spotted B-75 Beast 10764 | -6/Lower Caves | Activated DRS Beacon 11075 | -6/Lower Caves | Scrapoid Pod released 06L05-D (x5) 11604 | -6/Lower Caves | Build established: Scavenger-Gunner 11688 | -6/Lower Caves | Entered another Lower Caves area 11688 | -6/Lower Caves | Accompanied by 4 allies 11707 | -6/Lower Caves | Learned Factory garrison access intel 11863 | -6/Lower Caves | Lost 3 allies 11863 | -6/Lower Caves | Found Scrap Suit 11887 | -6/Lower Caves | Found Scrap Suit 11937 | -6/Lower Caves | Entered Factory 11937 | -5/Factory | Accompanied by 1 ally 11937 | -5/Factory | Evolved 2 slots: Utility x2 11938 | -5/Factory | Loaded intel: 4 garrison access locations 11950 | -5/Factory | Loaded intel: 8 recycling unit locations 12154 | -5/Factory | Build established: Scavenger-Scrapper 12220 | -5/Factory | Noticed UFD Elites at a Recycling Unit 12295 | -5/Factory | Lost 3 allies 12316 | -5/Factory | Scrapoid reinforcements arrived 12341 | -5/Factory | Noticed a derelict Sapper rigging charges 12447 | -5/Factory | Lost 3 allies 12499 | -5/Factory | Found Prototype Launcher 12537 | -5/Factory | First assault squad dispatched 12666 | -5/Factory | Identified exit to Upper Caves 12704 | -5/Factory | High security lockdown imminent 12725 | -5/Factory | Destroyed 9 combat bots 12784 | -5/Factory | High security lockdown engaged 12787 | -5/Factory | Discovered new exit (range 11) 12819 | -5/Factory | Crushed by falling debris 12820 | -5/Factory | System corruption reached 10% 12823 | -5/Factory | Crushed by falling debris 12830 | -5/Factory | Crushed by falling debris 12861 | -5/Factory | Lost 8 parts (2p3u3w) 12885 | -5/Factory | Entered Upper Caves 12891 | -5/Upper Caves | Identified Smartbomb Launcher 12917 | -5/Upper Caves | Attracted the attention of an 0b10 checkpoint 12932 | -5/Upper Caves | Encountered a Warlord checkpoint 12945 | -5/Upper Caves | Destroyed 7 combat bots 13062 | -5/Upper Caves | Learned 4 Factory zone layouts 13130 | -5/Upper Caves | Learned Factory security intel 13363 | -5/Upper Caves | Lost 4 allies 13506 | -5/Upper Caves | Spotted B-75 Beast 13590 | -5/Upper Caves | Discovered new exit (range 9) 13596 | -5/Upper Caves | Entered another Upper Caves area 13676 | -5/Upper Caves | Discovered new exit (range 16) 13690 | -5/Upper Caves | Entered Zhirov 13690 | -5/Zhirov | Discovered new exit (range 3) 13730 | -5/Zhirov | Learned location of Quarantine (-2) 13730 | -5/Zhirov | Learned location of Command (-1) 13751 | -5/Zhirov | Found Alien Artifact 13763 | -5/Zhirov | Found Alien Artifact 13763 | -5/Zhirov | Identified Integrated Reactor 13763 | -5/Zhirov | Installed Integrated Reactor, increased core energy generation (+10) 13994 | -5/Zhirov | Entered Proximity Caves 14131 | -4/Proximity Caves | Learned Research stockpile data 14291 | -4/Proximity Caves | Discovered new exit (range 14) 14335 | -4/Proximity Caves | Entered Factory 14335 | -4/Factory | Evolved 2 slots: Utility x1, Weapon x1 14336 | -4/Factory | Identified exit to Extension 14576 | -4/Factory | Garrison activated, responded to threat 14615 | -4/Factory | Loaded intel: 8 recycling unit locations 14710 | -4/Factory | Sucked down chute 14710 | -4/Factory | Entered Waste 14735 | -4/Waste | Spotted C-40 Crusher 14749 | -4/Waste | Spotted C-40 Crusher 14771 | -4/Waste | Spotted C-40 Crusher 14774 | -4/Waste | Spotted C-40 Crusher 14775 | -4/Waste | Found Prototype Device 14804 | -4/Waste | Spotted C-40 Crusher 14810 | -4/Waste | Warlord forces began an assault 14818 | -4/Waste | Destroyed C-40 Crusher 14819 | -4/Waste | Allies destroyed C-40 Crusher 14822 | -4/Waste | Allies destroyed C-40 Crusher 14823 | -4/Waste | Allies destroyed C-40 Crusher 14838 | -4/Waste | Spotted C-40 Crusher 14871 | -4/Waste | Lost 4 allies 14896 | -4/Waste | Allies destroyed C-40 Crusher 14916 | -4/Waste | Identified Thermal Barrier 14969 | -4/Waste | Discovered new exit (range 13) 15695 | -4/Waste | Entered Factory 15695 | -4/Factory | Accompanied by 13 allies 15705 | -4/Factory | Identified Transdimensional Reconstructor 15723 | -4/Factory | Found Prototype Processor 15738 | -4/Factory | Identified Exp. Targeting Computer 15791 | -4/Factory | Build established: Derelict-Scrapper 15980 | -4/Factory | Loaded intel: 8 recycling unit locations 16025 | -4/Factory | Garrison activated, responded to threat 16063 | -4/Factory | Lost 4 allies 16081 | -4/Factory | P-70 Sage assimilated allied 9Y-5YJ(b) 16117 | -4/Factory | Lost 3 allies 16167 | -4/Factory | Lost 7 parts (1n3u3w) 16168 | -4/Factory | System corruption reached 10% 16210 | -4/Factory | Scrapoid reinforcements arrived 16242 | -4/Factory | Found Scrap Suit 16276 | -4/Factory | Lost 6 allies 16445 | -4/Factory | First assault squad dispatched 16453 | -4/Factory | Scrapoid reinforcements arrived 16532 | -4/Factory | Build established: Scavenger-Scrapper 16599 | -4/Factory | Discovered new exit (range 13) 16636 | -4/Factory | Identified exit to Research 16715 | -4/Factory | Identified exit to Upper Caves 16715 | -4/Factory | Identified exit to Armory 16891 | -4/Factory | Lost 3 allies 16967 | -4/Factory | Spotted B-86 Titan 16986 | -4/Factory | High security lockdown imminent 16986 | -4/Factory | Destroyed B-86 Titan 17066 | -4/Factory | High security lockdown engaged 17265 | -4/Factory | Entered Upper Caves 17454 | -4/Upper Caves | Encountered a Warlord checkpoint 17660 | -4/Upper Caves | Discovered new exit (range 13) 17671 | -4/Upper Caves | Identified exit to Upper Caves 17755 | -4/Upper Caves | Entered another Upper Caves area 17778 | -4/Upper Caves | Learned location of Armory (-4) 17984 | -4/Upper Caves | Found DCF Scrap (13 items) 17986 | -4/Upper Caves | Encountered a Warlord checkpoint 18314 | -4/Upper Caves | Discovered new exit (range 8) 18320 | -4/Upper Caves | Identified exit to Warlord 18322 | -4/Upper Caves | Entered Warlord 18356 | -4/Warlord | System corruption cleaned by Quarantine Array 18514 | -4/Warlord | Discovered new exit (range 100) 18527 | -4/Warlord | Found Prototype Special Weapon 18527 | -4/Warlord | Identified RU-N14's Throwing Claymores v3 18532 | -4/Warlord | Found RU-N14's Throwing Claymores v3 18578 | -4/Warlord | Visited the Vortex Lab 18580 | -4/Warlord | Warlord's base attacked by MAIN.C 18584 | -4/Warlord | Found Prototype Energy Cannon 18586 | -4/Warlord | Found Prototype Energy Cannon 18623 | -4/Warlord | Identified Vortex Driver (x2) 18635 | -4/Warlord | Found Prototype Reactor 18635 | -4/Warlord | Identified Vortex Chain Reactor 18663 | -4/Warlord | Found Exp. Targeting Computer 18668 | -4/Warlord | Found Prototype Processor 18786 | -4/Warlord | Warlord forces counterattacked 18815 | -4/Warlord | P-70 Sage assimilated allied XD-H15(g) 18816 | -4/Warlord | Spotted XD-H15(g) 18827 | -4/Warlord | Destroyed XD-H15(g) 18848 | -4/Warlord | Destroyed 16 combat bots 18880 | -4/Warlord | Spotted Striker 18880 | -4/Warlord | Spotted Striker 18886 | -4/Warlord | Spotted Striker 18910 | -4/Warlord | Destroyed Striker 18946 | -4/Warlord | Lost 13 allies 18980 | -4/Warlord | Spotted Executioner 18980 | -4/Warlord | Spotted Executioner 18980 | -4/Warlord | Spotted Striker 18987 | -4/Warlord | Core integrity fell below 50% 18993 | -4/Warlord | Destroyed Executioner 18994 | -4/Warlord | Destroyed Executioner 18995 | -4/Warlord | P-70 Sage assimilated allied MF-5QT(b) 19001 | -4/Warlord | Destroyed Striker 19022 | -4/Warlord | Destroyed 16 combat bots 19024 | -4/Warlord | Lost 6 allies 19126 | -4/Warlord | Lost 4 allies 19203 | -4/Warlord | Spotted Executioner 19255 | -4/Warlord | Warlord base infiltrated, sounded retreat 19275 | -4/Warlord | Build established: Scavenger-Tank 19303 | -4/Warlord | Entered Proximity Caves 19366 | -3/Proximity Caves | Identified Spectral Analyzer 19592 | -3/Proximity Caves | Attracted the attention of an 0b10 checkpoint 20593 | -3/Proximity Caves | Discovered exit to Research (range 4) 20610 | -3/Proximity Caves | Entered Research 20610 | -3/Research | Evolved 2 slots: Utility x2 20611 | -3/Research | Identified exit to Testing 21294 | -3/Research | Crushed by falling debris 21323 | -3/Research | System corruption reached 10% 21353 | -3/Research | Lost 3 parts (3u) 21421 | -3/Research | Warped through subspace 21461 | -3/Research | System corruption reached 30% 21503 | -3/Research | Lost 11 parts (1p1n4u5w) 21513 | -3/Research | Discovered new exit (range 12) 21528 | -3/Research | Entered another Research area 21528 | -2/Research | Evolved 2 slots: Weapon x2 21529 | -2/Research | Identified exit to Quarantine 21754 | -2/Research | Repaired Mak. Microdissipator Network 21761 | -2/Research | Loaded intel: 5 recycling unit locations 21868 | -2/Research | Spotted B-90 Cyclops 22046 | -2/Research | Spotted B-90 Cyclops 22071 | -2/Research | Lost 6 parts (1p4u1w) 22141 | -2/Research | Lost 4 parts (1p2n1w) 22147 | -2/Research | Core integrity fell below 50% 22219 | -2/Research | Crushed by falling debris 22237 | -2/Research | Core integrity fell below 20% 22278 | -2/Research | Search patrols dispatched 22280 | -2/Research | Lost 7 parts (3n3u1w) 22311 | -2/Research | Build established: Mutant 22346 | -2/Research | Destroyed by Y-72 Warden with Railgun Last Messages --------------- 22295_ U-05 Engineer builds a Wall. 22296_ Penetrated by Slug. 22306_ XXKWM6XGQ=T0Q2C6KNZL:VQI6,/WVI 22341_ Cmb. Linear Gravjet destroyed. 22343_ Slug penetrates Garrison Access. 22343_ Lrg. Storage Unit destroyed. 22344_ Slug penetrates Garrison Access. 22345_ Garrison Access collapses. 22345_ ALERT: Garrison Access compromised, dispatching multiple assault carriers. 22345_ Garrison Access disabled. 22345_ Relay Coupler [Swarmer] tumbles out of Garrison Access. 22345_ Relay Coupler [Hunter] tumbles out of Garrison Access. 22345_ Penetrated by Slug. 22345_ Lrn. Phase Cannon destroyed. Map ----- +----------------------------------------------------+ | ?????????????????????????????????????????????????? | | ?????????????????????????????????????????????????? | | ?????????????????????????????????????????????????? | | ?????????????????????????????????????????????????? | | ?????????????????????????????????????????????????? | | ?????????????????????????????????????????????????? | | ?????????????????????????????????????????????????? | | ?????????????????????????????????????????????????? | | ?????????????????????????????????????????????????? | | ?????????????????????????????????????????????????? | | ?????????????????????????????????????????????????? | | ?????????????????????????????????????????????????? | | ?????????????????????????????????????????????????? | | ?????????????????????????????????????????????????? | | ?????????????????????????????????????????????????? | | ?????????????????????????????????????????????????? | | ?????????????????????????????????????????????????? | | ?????????????????????????????????????????????????? | | ?????????????????????????????????????????????????? | | ?????????????????????????????????????????????????? | | ??????????????????#??###?????????????????????????? | | ??????????#??????##### ######????????????????????? | | ???????#????#????# # #????????????????????? | | ?????????????????# ; #????????????????????? | | ???????######????# " ;#?????????????????????? | | ???????# #????# """u@#??????????????????????? | | ???????# ##???# G #??????????????????????? | | ???????# n """ #??????????????????????? | | ??? ???+ ###### Yh#??????????????????????? | | ???????# #????# h #??#???????????????????? | | ???????# ####?# h g ##?????????????????????? | | ####+### #T #######g#### #????????????????????? | | hu ###????????????????????? | | h #??#???????????????????? | | #??????????????????????? | | *! #??????????????????????? | | # * ########## #??????????????????????? | | # # # #??????? ??? ?????????? | | # " # #??????????? #????????? | | # # ] + #??????????? ?????????? | | # # # #???????? "" ?????????? | | # """ # """ # #????????F"" ?????????? | | # """ # "Y # #????????""" ?????????? | | # """ ## """ # #???????? ?????????? | | # ## # #???????? ?????????? | | # ## # ######### ###???????? | | # ########### #???????? | | + """ ### # ???????? | | # """ # # ????????? | | # """ # # ????????? | +----------------------------------------------------+ Best States ------------- Heat Dissipation 75 Coolant Potential 120 Energy Generation 65 Energy Capacity 700 Matter Stores 300 Matter Capacity 300 Sight Range 24 Robot Scan Range 16 Terrain Scan Range 18 Terrain Scan Density 10 Jamming Range 16 Cloak Strength 3 Additional Mass Support 16 Base Temperature (-) 150 Corruption Block 15 Armor Coverage 825 Resistance: KI 20 Resistance: TH 50 Power Shielding 90 Weapon Cycling 30 Evasion (%) 61 Targeting Accuracy 12 Core Analysis 6 Armor Integrity Analysis 40 Recoil Reduction 6 Offensive Hacking 26 Defensive Hacking 14 Item Schematics ----------------- Imp. Cryofiber Web | -6/Factory | Scanalyzed Lrn. Missile Launcher | -6/Factory | Scanalyzed Assault Drone Bay | -5/Zhirov | Free Exp. Heat Sink | -5/Zhirov | Free Exp. Optical Array | -5/Zhirov | Free Imp. Arc Thrower | -5/Zhirov | Free Adv. Hacking Suite | -4/Factory | Scanalyzed Exp. Targeting Computer | -4/Factory | Scanalyzed Robot Schematics ------------------ M-28 Smith | -6/Factory | Hacked Fabricated ------------ Lrn. Missile Launcher | x1 | -6/Factory Repaired ---------- Mak. Microdissipator Network | 37% | -2/Research Studied --------- Lrn. Missile Launcher | -5/Factory | Hacked Lgt. Antimatter Reactor | -5/Factory | Hacked Rnf. Fission Core | -4/Factory | Hacked KE Penetrator | -4/Factory | Hacked Centrium Wheel | -3/Research | Hacked Alien Tech Used ----------------- Integrated Reactor Transdimensional Reconstructor Achievements -------------- Bob, First Of His Name Loot Taster You May Approach The Wall Challenges ------------ None Game ------ Seed TrapPiercelightClaw Manual? 0 Play Time 04:49:38 Cumulative 594.8 hours Start 2026.03.01 @ 18:29:32 End 2026.04.18 @ 12:37:30 Sessions 15 Manual Loads 0 Difficulty Rogue Special Mode None Game No. 235 Rogue 235 Adventurer 0 Explorer 0 Win Type - Total 23 Types 10/2/7/1/0/0/0/2/0/1 Lore% 92 Gallery% 83 Achievement% 63 Wizard Run 0 Options --------- Layout 0 ASCII 0 Keyboard 1 Movement Numpad Keybinds 0 Fullscreen 2 Font 12/Smallcaps Map View 83x54 Zoom Use 0% Tactical HUD 1 Map Filters NONE Filters NONE Steam 1 RUN: cdcf508e-45c3-487d-8df7-4aeffcc32d35